bitfinex/quotes_SOLUSD_20251007
["timestamp","ask_amount","ask_price","bid_price","bid_amount"]
[1759877042299,0.67,222.58,222.56,77.11049]
[1759877043337,5.16286476,222.58,222.56,77.11049]
[1759877047111,0.67,222.57,222.54,97.91049]
[1759877048922,4.49286476,222.58,222.54,97.91049]
[1759877049120,5.16286476,222.58,222.54,97.91049]
[1759877050945,4.49253889,222.6,222.54,97.91049]
[1759877051106,35.87253889,222.6,222.55,0.08]
[1759877051510,36.54253889,222.6,222.55,0.08]
[1759877051715,0.67,222.59,222.55,77.11049]
[1759877051925,0.67,222.58,222.55,77.11049]
[1759877053918,0.67,222.57,222.55,77.11049]
[1759877057221,0.67,222.56,222.55,77.11049]
[1759877057921,0.67,222.58,222.55,77.11049]
[1759877058118,0.67,222.57,222.55,77.11049]
[1759877058535,5.1630354,222.57,222.55,77.11049]
[1759877058920,0.67,222.56,222.55,77.11049]
[1759877059723,5.16317038,222.56,222.55,77.11049]
[1759877063220,0.67,222.58,222.55,77.11049]
[1759877063720,4.4925648,222.59,222.55,77.11049]
[1759877063721,0.67,222.57,222.55,77.11049]
[1759877064438,5.1625648,222.59,222.55,77.11049]
[1759877064639,0.67,222.58,222.55,77.11049]
[1759877064945,0.67,222.57,222.55,77.11049]
[1759877066248,4.4925648,222.59,222.55,77.11049]
[1759877066442,0.67,222.58,222.55,77.11049]
[1759877067138,0.7,222.57,222.55,77.11049]
[1759877067947,31.38,222.61,222.56,10.95647521]
[1759877068245,31.38,222.61,222.57,0.08]
[1759877069344,35.87217078,222.61,222.56,10.87647521]
[1759877069534,35.87217078,222.61,222.56,10.95647521]
[1759877070050,36.57217078,222.61,222.56,10.95647521]
[1759877070246,5.19217078,222.61,222.56,10.95647521]
[1759877070552,5.19245281,222.6,222.56,10.87647521]
[1759877072048,0.7,222.59,222.55,77.11049]
[1759877072352,0.7,222.58,222.55,77.11049]
[1759877072551,0.7,222.57,222.55,77.11049]
[1759877072865,2.83066692,222.56,222.48,77.11049]
[1759877073031,2.13066692,222.54,222.48,77.11049]
[1759877073358,0.7,222.53,222.48,77.11049]
[1759877073540,0.7,222.52,222.48,77.11049]
[1759877073741,0.7,222.51,222.48,77.11049]
[1759877074652,5.19377612,222.53,222.48,77.11049]
[1759877074855,4.49377612,222.53,222.48,77.11049]
[1759877075036,0.7,222.52,222.48,77.11049]
[1759877075236,0.7,222.51,222.48,77.11049]
[1759877075829,5.1943185,222.51,222.48,77.11049]
[1759877076031,0.7,222.5,222.48,77.11049]
[1759877076269,0.7,222.49,222.48,77.11049]
[1759877077051,5.1943185,222.51,222.48,77.11049]
[1759877077349,4.49367952,222.54,222.48,77.11049]
[1759877077557,32.08,222.55,222.48,81.68526786]
[1759877077862,36.57356617,222.55,222.48,81.68526786]
[1759877078661,0.7,222.54,222.48,81.68526786]
[1759877080172,5.19363759,222.54,222.48,81.68526786]
[1759877083167,36.59317038,222.56,222.49,10.95647521]
[1759877083477,36.59317038,222.56,222.49,88.06696521]
[1759877083791,0.72,222.58,222.52,20.8]
[1759877083986,0.72,222.58,222.52,20.88]
[1759877084176,0.72,222.58,222.53,20.8]
[1759877085274,3.72497688,222.67,222.57,20.8]
[1759877085275,0.72,222.62,222.57,20.8]
[1759877085942,31.38,222.64,222.58,0.08]
[1759877086147,0.72,222.64,222.58,20.88]
[1759877086348,0.72,222.63,222.58,20.8]
[1759877086849,0.72,222.63,222.6,20.8]
[1759877087256,5.21187013,222.63,222.6,20.8]
[1759877088283,3.72497688,222.73,222.64,20.8]
[1759877088581,0.72,222.72,222.64,20.88]
[1759877088979,0.72,222.72,222.64,97.99049]
[1759877089282,4.49014413,222.71,222.65,13.56708611]
[1759877089784,0.72,222.7,222.65,13.48708611]
[1759877089959,0.72,222.69,222.64,97.91049]
[1759877090284,0.72,222.69,222.64,109.13517068]
[1759877091390,5.21059607,222.69,222.64,109.13517068]
[1759877091685,0.72,222.68,222.64,109.13517068]
[1759877091876,0.72,222.67,222.62,20.8]
[1759877092076,0.72,222.66,222.62,20.8]
[1759877092667,0.72,222.65,222.62,20.8]
[1759877093974,4.49135361,222.66,222.62,20.8]
[1759877094172,5.21135361,222.66,222.62,20.8]
[1759877095584,0.72,222.65,222.62,20.8]
[1759877096079,0.72,222.64,222.62,77.11049]
[1759877096278,0.72,222.66,222.62,77.11049]
[1759877096478,0.72,222.65,222.62,77.11049]
[1759877097797,17.08101165,222.68,222.62,77.11049]
[1759877097972,0.72,222.64,222.62,77.11049]
[1759877098469,5.21155666,222.64,222.62,77.11049]
[1759877100199,4.4913248,222.66,222.62,77.11049]
[1759877100389,0.72,222.65,222.62,77.11049]
[1759877100788,0.72,222.64,222.62,77.11049]
[1759877100975,0.72,222.63,222.62,77.11049]
[1759877101378,17.08259583,222.66,222.62,77.11049]
[1759877101582,0.72,222.63,222.62,77.11049]
[1759877101797,0.72,222.63,222.58,97.91049]
[1759877102001,1.36338996,222.64,222.58,97.91049]
[1759877102002,0.72,222.62,222.58,77.11049]
[1759877102207,5.21233335,222.61,222.58,77.11049]
[1759877102699,4.49187374,222.63,222.58,77.11049]
[1759877103000,31.38,222.66,222.58,77.11049]
[1759877103294,5.21137817,222.65,222.58,77.11049]
[1759877103492,0.72,222.64,222.58,77.11049]
[1759877103812,0.72,222.63,222.58,77.11049]
[1759877104297,4.49195939,222.62,222.58,77.11049]
[1759877105104,4.49155587,222.64,222.59,0.08]
[1759877105506,5.21155587,222.64,222.59,0.08]
[1759877105689,4.49155587,222.64,222.58,77.11049]
[1759877106007,11.94838535,222.65,222.58,77.11049]
[1759877106323,11.94838535,222.65,222.58,77.19049]
[1759877107211,16.43973949,222.65,222.58,77.19049]
[1759877116603,11.22838535,222.65,222.58,77.19049]
[1759877116804,0.72,222.64,222.58,77.19049]
[1759877118805,4.49175762,222.63,222.58,77.19049]
[1759877120025,15.71973949,222.65,222.58,77.19049]
[1759877120201,0.72,222.63,222.58,77.19049]
[1759877122205,4.49195939,222.62,222.58,77.19049]
[1759877124526,11.22838535,222.65,222.59,10.95647521]
[1759877124709,4.49115242,222.66,222.6,0.08]
[1759877125098,5.21115242,222.66,222.6,0.08]
[1759877126011,0.72,222.68,222.6,77.19049]
[1759877126217,0.72,222.7,222.61,10.95647521]
[1759877126523,0.72,222.69,222.62,0.08]
[1759877127334,4.49074905,222.68,222.62,0.08]
[1759877127533,5.20953937,222.74,222.65,31.67647521]
[1759877127719,0.72,222.76,222.66,0.08]
[1759877128223,0.72,222.76,222.7,20.8]
[1759877128528,0.72,222.76,222.71,20.8]
[1759877128708,0.72,222.75,222.71,20.8]
[1759877129113,0.72,222.78,222.71,20.8]
[1759877129434,4.48855409,222.79,222.72,10.95647521]
[1759877129621,4.48855409,222.79,222.72,10.87647521]
[1759877129932,4.48855409,222.79,222.75,20.8]
[1759877130109,5.20855409,222.79,222.75,20.8]
[1759877131111,0.72,222.78,222.75,20.8]
[1759877131331,4.48855409,222.79,222.75,20.8]
[1759877131534,5.20855409,222.79,222.75,20.8]
[1759877131732,5.20855409,222.79,222.76,20.8]
[1759877133033,4.48855409,222.79,222.76,20.8]
[1759877133216,5.20855409,222.79,222.76,20.8]
[1759877134737,5.20855409,222.79,222.76,97.91049]
[1759877136814,0.72,222.78,222.76,97.91049]
[1759877137019,11.22050323,222.81,222.76,97.91049]
[1759877137020,0.72,222.77,222.76,97.91049]
[1759877137536,0.72,222.77,222.76,77.11049]
[1759877138721,5.20893477,222.77,222.76,77.11049]
[1759877139121,49.13466166,222.77,222.7,12.58389319]
[1759877139339,0.7,222.76,222.7,12.58389319]
[1759877139545,0.7,222.75,222.69,10.87647521]
[1759877139721,0.7,222.75,222.7,10.87647521]
[1759877139917,0.7,222.76,222.7,10.87647521]
[1759877140326,0.7,222.76,222.69,10.95647521]
[1759877140838,47.0512717,222.77,222.69,10.95647521]
[1759877141032,4.48933782,222.75,222.69,10.95647521]
[1759877141231,5.18933782,222.75,222.69,10.95647521]
[1759877141741,0.7,222.75,222.69,10.95647521]
[1759877143237,4.48953937,222.74,222.69,10.95647521]
[1759877143910,4.48953937,222.74,222.7,0.08]
[1759877144940,4.48925573,222.76,222.7,77.11049]
[1759877145145,0.7,222.74,222.7,77.11049]
[1759877145447,0.7,222.73,222.7,77.11049]
[1759877145822,0.7,222.75,222.7,77.11049]
[1759877146521,0.7,222.74,222.7,77.11049]
[1759877148548,5.18961277,222.74,222.7,77.11049]
[1759877150425,5.18961277,222.74,222.71,11.22284072]
[1759877155550,5.18961277,222.74,222.71,88.33333072]
[1759877156238,0.7,222.75,222.71,88.33333072]
[1759877156445,0.7,222.75,222.71,77.11049]
[1759877156651,0.7,222.75,222.72,13.48344906]
[1759877156951,11.22284072,222.76,222.72,13.48344906]
[1759877157255,5.14961641,222.74,222.72,13.48344906]
[1759877157448,4.48873327,222.78,222.73,0.08]
[1759877157652,0.66,222.77,222.72,13.48344906]
[1759877157950,0.66,222.76,222.72,10.87647521]
[1759877158252,0.66,222.76,222.72,22.09816544]
[1759877158750,5.14919727,222.76,222.72,22.09816544]
[1759877158952,0.66,222.75,222.72,22.09816544]
[1759877159164,0.66,222.74,222.72,10.87647521]
[1759877159365,4.48919727,222.76,222.73,13.35012545]
[1759877159959,5.1493768,222.75,222.73,13.35012545]
[1759877160167,0.66,222.74,222.73,90.46061545]
[1759877160337,0.66,222.74,222.73,77.11049]
[1759877162154,5.14953937,222.74,222.73,77.11049]
[1759877164549,5.14953937,222.74,222.7,77.11049]
[1759877164754,0.66,222.73,222.7,77.11049]
[1759877165055,0.66,222.72,222.7,77.11049]
[1759877170161,0.66,222.71,222.69,4.48953937]
[1759877170343,0.66,222.7,222.68,77.11049]
[1759877170549,0.66,222.69,222.68,77.11049]
[1759877172868,5.15054739,222.69,222.68,77.11049]
[1759877174966,4.4903078,222.71,222.68,77.11049]
[1759877175145,5.14974094,222.73,222.68,77.11049]
[1759877175542,0.66,222.72,222.68,77.11049]
[1759877176960,4.49014413,222.71,222.68,77.11049]
[1759877177160,0.66,222.7,222.68,77.11049]
[1759877178065,5.1503831,222.7,222.68,77.11049]
[1759877179261,0.66,222.71,222.68,77.11049]
[1759877179469,0.66,222.71,222.67,11.22446665]
[1759877180562,4.49034575,222.7,222.67,11.22446665]
[1759877181668,0.66,222.71,222.67,11.22446665]
[1759877181669,16.37420759,222.73,222.67,11.30446665]
[1759877182162,5.14974094,222.73,222.67,11.30446665]
[1759877182362,5.14974094,222.73,222.68,20.8]
[1759877182567,0.66,222.72,222.68,34.28526734]
[1759877183666,5.14996049,222.72,222.68,34.28526734]
[1759877183859,4.48996049,222.72,222.68,34.28526734]
[1759877184060,4.48996049,222.72,222.68,34.36526734]
[1759877184262,0.66,222.73,222.68,38.85599665]
[1759877184470,35.82973377,222.74,222.69,0.08]
[1759877184645,36.48973377,222.74,222.69,0.08]
[1759877184855,35.82973377,222.74,222.69,0.08]
[1759877185051,0.66,222.73,222.68,34.36526734]
[1759877185273,0.66,222.73,222.68,113.48526734]
[1759877185756,0.66,222.72,222.68,113.48526734]
[1759877186169,0.66,222.71,222.68,113.48526734]
[1759877186373,47.0535822,222.74,222.68,113.48526734]
[1759877186374,0.66,222.7,222.68,113.48526734]
[1759877186565,0.66,222.72,222.68,113.48526734]
[1759877188367,5.15002946,222.72,222.68,113.48526734]
[1759877190267,0.72,222.71,222.68,113.48526734]
[1759877190472,4.48974094,222.73,222.68,113.48526734]
[1759877190473,0.72,222.72,222.68,113.48526734]
[1759877191351,0.72,222.71,222.68,113.48526734]
[1759877192775,5.21009272,222.72,222.68,113.48526734]
[1759877194977,5.21009272,222.72,222.68,113.56526734]
[1759877195668,5.21009272,222.72,222.68,113.48526734]
[1759877195870,0.72,222.72,222.68,113.56526734]
[1759877196069,4.48974683,222.73,222.68,113.56526734]
[1759877196272,5.20974683,222.73,222.68,113.56526734]
[1759877196670,0.72,222.72,222.68,113.56526734]
[1759877196858,0.72,222.72,222.68,113.48526734]
[1759877197558,4.48974683,222.73,222.68,113.56526734]
[1759877197758,5.20974683,222.73,222.68,113.56526734]
[1759877198073,5.21000412,222.72,222.68,113.48526734]
[1759877198275,4.49000412,222.72,222.68,113.48526734]
[1759877198454,5.21000412,222.72,222.68,113.48526734]
[1759877198863,4.49000412,222.72,222.68,113.56526734]
[1759877199381,5.19000412,222.72,222.68,113.56526734]
[1759877199678,5.19000412,222.72,222.68,113.48526734]
[1759877201582,0.7,222.72,222.68,113.48526734]
[1759877201960,4.48974094,222.73,222.68,113.48526734]
[1759877202258,5.18974094,222.73,222.68,113.56526734]
[1759877202458,0.7,222.76,222.69,10.95647521]
[1759877202654,0.7,222.76,222.7,0.08]
[1759877202958,0.7,222.76,222.7,13.56344906]
[1759877203357,0.7,222.76,222.7,0.08]
[1759877203558,4.48933782,222.75,222.71,13.48344906]
[1759877203780,5.18933782,222.75,222.71,13.48344906]
[1759877204364,5.18933782,222.75,222.7,0.08]
[1759877204566,5.18933782,222.75,222.7,13.56344906]
[1759877205870,4.48913629,222.76,222.7,13.48344906]
[1759877206181,0.7,222.75,222.7,92.68344906]
[1759877206481,0.7,222.75,222.7,79.2]
[1759877206783,0.7,222.75,222.71,4.48913629]
[1759877207079,4.48953937,222.74,222.71,4.48913629]
[1759877207599,5.18953937,222.74,222.71,4.48913629]
[1759877207793,4.48953937,222.74,222.71,4.48913629]
[1759877208076,0.7,222.73,222.71,4.48913629]
[1759877208470,5.18953937,222.74,222.71,4.48913629]
[1759877210186,5.18953937,222.74,222.7,79.2]
[1759877210488,5.18953937,222.74,222.7,92.68344906]
[1759877212188,0.7,222.74,222.7,92.68344906]
[1759877212685,0.7,222.74,222.7,79.2]
[1759877212888,0.7,222.74,222.71,4.48942098]
[1759877213189,5.18954189,222.74,222.71,4.48942098]
[1759877214691,3.02138033,222.77,222.71,4.48942098]
[1759877214692,0.7,222.75,222.71,4.48942098]
[1759877215382,0.7,222.74,222.71,4.48942098]
[1759877215790,5.1895643,222.74,222.71,4.48942098]
[1759877220289,5.1895643,222.74,222.71,83.68942098]
[1759877225696,4.48913629,222.76,222.71,83.68942098]
[1759877225903,0.67,222.73,222.71,83.68942098]
[1759877226200,0.67,222.74,222.71,79.2]
[1759877226497,0.67,222.74,222.72,4.48913629]
[1759877226876,0.67,222.73,222.72,83.68913629]
[1759877227079,2.03209841,222.73,222.63,79.2]
[1759877227298,1.36209841,222.69,222.64,13.48769248]
[1759877227487,1.36209841,222.69,222.61,79.2]
[1759877227488,0.67,222.68,222.61,79.2]
[1759877227800,0.67,222.67,222.62,24.36477411]
[1759877227988,0.67,222.66,222.62,24.36477411]
[1759877228199,1.36209841,222.68,222.62,24.36477411]
[1759877228200,0.67,222.65,222.62,24.36477411]
[1759877228577,1.36209841,222.68,222.62,13.4882989]
[1759877228780,5.16159794,222.64,222.61,10.87647521]
[1759877228979,5.16159794,222.64,222.61,24.36538058]
[1759877228980,0.67,222.63,222.61,24.36538058]
[1759877230198,0.67,222.62,222.6,20.8]
[1759877230610,0.67,222.62,222.59,15.36904001]
[1759877230808,0.67,222.62,222.6,4.49122523]
[1759877231609,0.67,222.62,222.6,8.98354294]
[1759877235615,0.67,222.61,222.59,15.36903494]
[1759877235813,0.67,222.64,222.6,4.49141126]
[1759877236020,0.67,222.63,222.6,4.49141126]
[1759877236311,32.68209841,222.7,222.62,4.49195939]
[1759877236510,5.16054739,222.69,222.61,4.49215027]
[1759877236717,0.67,222.68,222.61,4.49215027]
[1759877236902,0.67,222.67,222.61,15.36862548]
[1759877237101,0.67,222.66,222.61,15.36862548]
[1759877237617,0.67,222.66,222.61,15.44862548]
[1759877238019,0.67,222.65,222.61,15.44862548]
[1759877238319,0.67,222.65,222.61,94.64862548]
[1759877239195,4.49054739,222.69,222.61,94.64862548]
[1759877239400,0.67,222.66,222.61,94.64862548]
[1759877239903,0.67,222.65,222.61,90.07647521]
[1759877241220,0.67,222.67,222.62,0.08]
[1759877241425,0.67,222.67,222.62,12.6684669]
[1759877241803,0.67,222.67,222.62,91.8684669]
[1759877242206,0.67,222.67,222.62,96.36035462]
[1759877242414,0.67,222.66,222.62,96.28035462]
[1759877244023,4.49054739,222.69,222.62,96.28035462]
[1759877244208,0.67,222.65,222.62,96.28035462]
[1759877246416,5.16099182,222.67,222.62,96.28035462]
[1759877246733,0.67,222.66,222.62,96.28035462]
[1759877247436,0.69,222.65,222.62,96.28035462]
[1759877251517,4.49054739,222.69,222.62,96.28035462]
[1759877251711,0.69,222.67,222.62,96.28035462]
[1759877251911,0.69,222.66,222.62,96.28035462]
[1759877253132,0.69,222.66,222.62,91.7884669]
[1759877253333,0.69,222.65,222.62,91.7884669]
[1759877253522,0.69,222.64,222.62,79.2]
[1759877254325,0.69,222.64,222.62,83.69135414]
[1759877256426,0.69,222.63,222.62,83.69135414]
[1759877256728,0.69,222.65,222.62,83.69135414]
[1759877256935,4.49074905,222.68,222.62,83.69135414]
[1759877257119,0.69,222.65,222.62,83.69135414]
[1759877257322,0.69,222.64,222.62,83.69135414]
[1759877257834,5.1813474,222.66,222.62,83.69135414]
[1759877259935,0.69,222.65,222.62,83.69135414]
[1759877260132,0.69,222.64,222.62,83.69135414]
[1759877260432,0.69,222.66,222.62,83.69135414]
[1759877260639,0.69,222.65,222.62,83.69135414]
[1759877261012,5.1813962,222.65,222.62,83.69135414]
[1759877261832,11.22504535,222.72,222.64,20.8]
[1759877262013,4.49014413,222.71,222.65,10.95647521]
[1759877262212,4.49014413,222.71,222.65,24.44295501]
[1759877262431,5.18014413,222.71,222.65,24.44295501]
[1759877262732,5.18014413,222.71,222.65,10.95647521]
[1759877262936,5.18014413,222.71,222.66,13.4864798]
[1759877263140,0.69,222.7,222.66,13.4864798]
[1759877263537,1.36209841,222.68,222.64,79.2]
[1759877263721,0.69,222.67,222.64,79.2]
[1759877263935,0.69,222.66,222.64,79.2]
[1759877264236,0.69,222.65,222.64,79.2]
[1759877265436,4.49132285,222.66,222.64,79.2]
[1759877265659,22.44568145,222.76,222.65,0.08]
[1759877265815,0.69,222.72,222.68,20.8]
[1759877266234,0.69,222.71,222.68,20.8]
[1759877266643,4.37046255,222.76,222.68,20.8]
[1759877266846,4.48994252,222.72,222.68,20.8]
[1759877267024,0.69,222.71,222.68,20.8]
[1759877268047,0.69,222.71,222.68,25.28994252]
[1759877270454,5.18014522,222.71,222.68,25.28994252]
[1759877271657,5.18014522,222.71,222.68,104.48994252]
[1759877272640,4.48974094,222.73,222.68,104.48994252]
[1759877272859,0.69,222.7,222.68,83.68994252]
[1759877273152,0.69,222.69,222.68,79.2]
[1759877274441,0.69,222.69,222.64,79.2]
[1759877274641,0.69,222.68,222.64,79.2]
[1759877274846,0.69,222.67,222.64,79.2]
[1759877275038,0.69,222.66,222.64,79.2]
[1759877275236,4.49074905,222.68,222.64,79.2]
[1759877275237,0.69,222.65,222.64,79.2]
[1759877275649,0.69,222.65,222.63,13.4882989]
[1759877275850,0.69,222.65,222.62,79.2]
[1759877276054,0.69,222.64,222.62,83.69074905]
[1759877278738,0.66,222.63,222.62,4.49074905]
[1759877279051,5.15193899,222.63,222.58,79.2]
[1759877279254,0.66,222.62,222.58,79.2]
[1759877279457,0.66,222.61,222.58,79.2]
[1759877280775,5.15193899,222.63,222.58,79.2]
[1759877280954,0.66,222.62,222.58,83.69193899]
[1759877281264,0.66,222.62,222.58,88.18461514]
[1759877282343,0.66,222.63,222.58,88.26461514]
[1759877282544,0.66,222.63,222.58,83.77267615]
[1759877282870,0.66,222.63,222.59,11.22794686]
[1759877283266,0.66,222.63,222.59,79.2]
[1759877283580,0.66,222.62,222.59,79.2]
[1759877283873,2.7904301,222.61,222.58,79.2]
[1759877284166,0.66,222.6,222.58,79.2]
[1759877284379,0.66,222.59,222.58,79.2]
[1759877285751,5.1525648,222.59,222.58,79.2]
[1759877286247,5.1525648,222.59,222.58,199.2]
[1759877287651,7.2829949,222.59,222.58,199.2]
[1759877288372,7.2829949,222.59,222.58,120.0]
[1759877289366,0.66,222.61,222.58,120.0]
[1759877289568,4.4925648,222.59,222.58,120.0]
[1759877289771,5.1525648,222.59,222.58,120.0]
[1759877294481,0.66,222.65,222.58,203.77276482]
[1759877294668,29.28,222.67,222.59,0.08]
[1759877294873,28.62,222.66,222.59,0.08]
[1759877295181,28.62,222.66,222.6,13.49072512]
[1759877295362,28.62,222.66,222.61,0.08]
[1759877295882,0.66,222.69,222.61,4.49201446]
[1759877296065,31.3,222.69,222.63,20.8]
[1759877296272,31.3,222.69,222.63,20.88]
[1759877296578,36.45055779,222.69,222.63,20.88]
[1759877297655,36.45055779,222.69,222.63,25.37172677]
[1759877298884,36.45055779,222.69,222.63,38.86063214]
[1759877299854,36.45055779,222.69,222.63,38.78063214]
[1759877300059,5.15083549,222.68,222.63,38.78063214]
[1759877300259,5.15083549,222.68,222.63,34.28890537]
[1759877301085,5.15083549,222.68,222.63,113.48890537]
[1759877301789,2.1304301,222.65,222.63,79.2]
[1759877301986,4.49083549,222.68,222.63,79.2]
[1759877301987,34.0904301,222.64,222.63,79.2]
[1759877302303,34.0904301,222.64,222.58,199.2]
[1759877302457,2.7904301,222.63,222.58,199.2]
[1759877302662,0.66,222.63,222.58,199.2]
[1759877302864,0.66,222.62,222.58,199.2]
[1759877303064,0.66,222.67,222.59,10.95647521]
[1759877303311,31.3,222.65,222.59,10.95647521]
[1759877303589,31.3,222.65,222.6,13.49011848]
[1759877303786,31.96,222.65,222.6,17.98237357]
[1759877304568,0.66,222.64,222.6,13.49011848]
[1759877304771,0.66,222.64,222.59,15.368955]
[1759877305289,0.66,222.64,222.59,28.93907348]
[1759877305494,0.66,222.64,222.59,15.448955]
[1759877305666,0.66,222.64,222.6,13.49011848]
[1759877305870,0.66,222.64,222.59,15.448955]
[1759877306196,0.66,222.64,222.6,13.49011848]
[1759877306697,0.66,222.64,222.59,15.448955]
[1759877306901,0.66,222.64,222.59,28.93907348]
[1759877307195,0.66,222.64,222.59,94.648955]
[1759877307390,0.66,222.64,222.6,13.49011848]
[1759877308280,35.79137117,222.65,222.6,13.49011848]
[1759877308483,0.72,222.71,222.61,42.25647521]
[1759877308791,31.32,222.71,222.64,20.8]
[1759877309010,0.72,222.7,222.64,20.8]
[1759877309571,5.21044617,222.7,222.65,13.48708611]
[1759877309772,0.72,222.69,222.65,13.48708611]
[1759877310975,0.72,222.68,222.65,13.48708611]
[1759877311296,2.1304301,222.66,222.55,0.08]
[1759877311506,2.1304301,222.64,222.56,15.36947955]
[1759877311800,2.8504301,222.63,222.58,199.2]
[1759877311975,0.72,222.62,222.58,199.2]
[1759877312181,2.1304301,222.64,222.58,199.2]
[1759877312395,0.72,222.63,222.58,199.2]
[1759877312974,2.8504301,222.66,222.59,0.08]
[1759877313201,4.49135414,222.65,222.59,4.57253072]
[1759877313384,4.49135414,222.65,222.59,18.06325584]
[1759877315989,4.49135414,222.65,222.59,97.26325584]
[1759877316191,0.72,222.65,222.59,97.26325584]
[1759877317292,4.49115242,222.66,222.59,83.77253072]
[1759877317490,5.21115242,222.66,222.6,13.49011848]
[1759877317693,4.49115242,222.66,222.6,13.49011848]
[1759877317894,5.21154211,222.65,222.6,13.49011848]
[1759877318099,4.49154211,222.65,222.6,13.49011848]
[1759877318288,5.21154211,222.65,222.6,13.49011848]
[1759877318480,0.72,222.64,222.6,13.49011848]
[1759877318901,0.72,222.64,222.59,79.28]
[1759877319098,0.72,222.63,222.59,79.2]
[1759877319996,5.21178454,222.63,222.59,79.2]
[1759877323915,0.72,222.63,222.59,79.2]
[1759877324699,0.72,222.63,222.59,83.69256332]
[1759877325109,4.49156741,222.64,222.63,119.28]
[1759877325690,15.7191498,222.66,222.63,119.28]
[1759877325995,17.8495799,222.66,222.63,119.28]
[1759877327096,16.3791498,222.66,222.63,119.28]
[1759877327412,0.66,222.65,222.63,119.28]
[1759877327913,0.66,222.64,222.63,119.28]
[1759877329514,5.15155587,222.64,222.63,119.28]
[1759877330814,5.15155587,222.64,222.63,198.48]
[1759877331313,0.66,222.68,222.63,140.75]
[1759877331612,0.66,222.67,222.63,119.95]
[1759877331810,0.66,222.67,222.63,119.28]
[1759877332114,33.4304301,222.68,222.63,119.28]
[1759877332313,0.66,222.67,222.63,119.28]
[1759877332496,2.7904301,222.67,222.63,119.28]
[1759877332700,0.66,222.66,222.63,119.28]
[1759877332895,0.66,222.65,222.63,119.28]
[1759877336626,6.62184855,222.65,222.63,198.48]
[1759877336797,34.0904301,222.64,222.63,198.48]
[1759877337002,31.96,222.64,222.63,198.48]
[1759877337204,38.58198597,222.64,222.63,198.48]
[1759877339130,37.81563881,222.64,222.63,198.48]
[1759877339726,37.81563881,222.64,222.63,119.28]
[1759877341722,35.79155587,222.64,222.63,119.28]
[1759877341927,1.36408294,222.66,222.63,119.28]
[1759877342128,31.3,222.64,222.63,119.98]
[1759877342808,31.3,222.64,222.63,119.28]
[1759877345636,35.79155587,222.64,222.63,198.48]
[1759877346706,31.3,222.64,222.63,198.48]
[1759877346905,35.79155587,222.64,222.63,198.48]
[1759877350306,31.3,222.64,222.63,198.48]
[1759877351126,35.79155587,222.64,222.63,198.48]
[1759877352442,40.85351335,222.64,222.63,198.48]
[1759877355239,40.85351335,222.64,222.63,119.28]
[1759877359128,40.85351335,222.64,222.63,96.62423656]
[1759877359331,42.21759629,222.64,222.63,12.76264791]
[1759877359545,75.90426534,222.64,222.53,79.2]
[1759877359747,1.36408294,222.57,222.53,79.2]
[1759877359933,31.3,222.56,222.53,79.2]
[1759877360841,0.68,222.55,222.5,0.7]
[1759877361037,31.3,222.54,222.5,0.7]
[1759877361449,35.79360005,222.54,222.5,0.7]
[1759877362351,31.3,222.54,222.5,0.7]
[1759877363960,35.79359191,222.54,222.5,0.7]
[1759877364156,36.47359191,222.54,222.5,0.7]
[1759877365636,0.68,222.53,222.47,0.2]
[1759877365830,31.3,222.52,222.47,0.9]
[1759877366060,31.3,222.52,222.48,0.7]